bitfinex-derivatives/quotes_ETHF0:USTF0_20250410
["timestamp","ask_amount","ask_price","bid_price","bid_amount"]
[1744300587131,1.33128,1503.4,1503.3,1.3313]
[1744300587330,1.33122,1503.4,1503.3,1.33124]
[1744300587520,2.97229,1503.4,1503.3,1.33124]
[1744300587726,1.33131,1503.3,1503.2,42.13136]
[1744300587921,11.58681,1503.3,1503.2,42.13136]
[1744300588130,11.89657,1503.3,1503.2,42.13136]
[1744300588535,11.89657,1503.3,1503.2,1.33136]
[1744300588729,13.22788,1503.3,1503.2,1.33136]
[1744300588933,11.89657,1503.3,1503.2,1.33136]
[1744300589427,1.33139,1503.2,1503.1,45.33925]
[1744300589632,1.33139,1503.2,1503.1,40.8]
[1744300589831,1.64107,1503.2,1503.1,42.13148]
[1744300590633,1.64107,1503.2,1503.1,1.33148]
[1744300591537,1.64107,1503.2,1502.3,1.33219]
[1744300591538,14.86485,1503.2,1502.3,1.33219]
[1744300591733,1.33187,1502.7,1502.6,1.33189]
[1744300591938,3.2078,1503.0,1502.4,6.53807]
[1744300592129,9.6762,1502.9,1502.7,1.33181]
[1744300592326,9.6762,1502.9,1502.4,3.2078]
[1744300592629,1.33186,1502.7,1502.6,1.3319]
[1744300592829,11.30730058,1502.9,1502.6,1.33185]
[1744300592830,1.34177942,1502.8,1502.6,1.33185]
[1744300593035,0.00996942,1502.8,1502.7,1.33184]
[1744300593239,1.33193,1502.6,1502.5,0.00996942]
[1744300593647,14.52507,1502.8,1502.5,3.21776942]
[1744300593648,12.89396942,1502.8,1502.5,3.21776942]
[1744300593940,12.89396942,1502.8,1502.6,1.33186]
[1744300593941,12.64904,1502.8,1502.6,1.33186]
[1744300594143,11.31727,1502.8,1502.7,1.33184]
[1744300594345,12.64904,1502.8,1502.6,1.33188]
[1744300594540,11.31727,1502.8,1502.6,1.33188]
[1744300594744,0.00996942,1502.8,1502.7,1.33184]
[1744300595443,1.64107,1502.8,1502.7,1.33184]
[1744300595636,0.00996942,1502.8,1502.7,1.33184]
[1744300595836,0.00996942,1502.8,1502.7,4.53964]
[1744300596645,1.64107,1502.8,1502.5,0.00996942]
[1744300596838,1.64107,1502.8,1502.7,1.33184]
[1744300597143,0.00996942,1502.8,1502.7,1.33184]
[1744300598536,0.00996942,1502.8,1502.7,11.58594]
[1744300599942,9.42e-06,1502.8,1502.7,16.58594]
[1744300600840,9.42e-06,1502.8,1502.7,28.43994]
[1744300601244,9.42e-06,1502.8,1502.7,16.58594]
[1744300601450,9.42e-06,1502.8,1502.7,11.58594]
[1744300602447,1.63111,1502.8,1502.7,1.33184]
[1744300603533,9.42e-06,1502.8,1502.7,1.33184]
[1744300603749,9.42e-06,1502.8,1502.7,11.05084]
[1744300604650,1.63111,1502.8,1502.6,4.53969]
[1744300604843,2.96291,1502.8,1502.6,3.2078]
[1744300605147,2.96291,1502.8,1502.6,1.33193]
[1744300605148,10.4491,1502.7,1502.6,1.33193]
[1744300605348,10.4491,1502.7,1502.6,4.53973]
[1744300605543,9.42e-06,1502.8,1502.7,1.33184]
[1744300605743,9.42e-06,1502.8,1502.7,11.81984]
[1744300607045,9.42e-06,1502.8,1502.7,16.81984]
[1744300607648,9.42e-06,1502.8,1502.7,17.48544]
[1744300608050,9.42e-06,1502.8,1502.7,16.81984]
[1744300608655,9.42e-06,1502.8,1502.7,11.81984]
[1744300608852,2.96286,1502.8,1502.7,1.33184]
[1744300609548,1.63111,1502.8,1502.7,1.33184]
[1744300609746,1.63111,1502.8,1502.6,1.3319]
[1744300609945,1.33193,1502.6,1502.5,1.34190942]
[1744300610152,1.33219,1502.3,1502.2,10.25959814]
[1744300610346,3.33082,1502.2,1501.3,10.1796]
[1744300610546,0.33010524,1502.1,1501.4,1.33299]
[1744300610743,3.32938,1502.8,1502.0,3.2078]
[1744300610953,3.32938,1502.8,1501.8,3.33138]
[1744300610954,1.33184,1502.7,1502.6,3.2078]
[1744300611349,6.33184,1502.7,1502.6,3.2078]
[1744300611953,5.0,1502.7,1502.6,3.2078]
[1744300612256,1.34171942,1502.8,1502.6,3.2078]
[1744300612556,0.00996942,1502.8,1502.6,3.2078]
[1744300612754,1.3321,1502.4,1502.3,3.2078]
[1744300612951,1.33237,1502.1,1501.6,15.8378136]
[1744300613157,3.2078,1502.2,1501.6,15.8378136]
[1744300613359,3.2078,1502.2,1501.8,4.54042]
[1744300613559,3.2078,1502.2,1501.7,43.9181136]
[1744300613560,9.5579,1502.1,1501.7,43.9181136]
[1744300613750,9.5579,1502.1,1501.8,3.1181136]
[1744300613954,9.56786942,1502.1,1501.9,3.1181136]
[1744300614159,9.56786942,1502.1,1501.9,4.4506436]
[1744300614354,0.00996942,1502.1,1502.0,7.6583736]
[1744300614555,0.00996942,1502.1,1502.0,4.54026]
[1744300614761,0.00996942,1502.1,1502.0,7.6583736]
[1744300615062,0.00996942,1502.1,1502.0,4.4505736]
[1744300615266,0.00996942,1502.1,1502.0,17.6583736]
[1744300615556,0.00996942,1502.1,1502.0,12.6583736]
[1744300615756,9.5579,1502.7,1502.5,1.33197]
[1744300615957,9.5579,1502.7,1502.2,3.2078]
[1744300616150,9.5579,1502.7,1502.3,3.1181136]
[1744300616350,9.5579,1502.7,1502.4,3.2078]
[1744300616653,9.5579,1502.7,1502.4,16.7253136]
[1744300616856,9.56786942,1502.7,1502.6,1.33193]
[1744300617051,9.56786942,1502.7,1502.5,3.1181136]
[1744300617256,9.56786942,1502.7,1502.6,3.1181136]
[1744300617650,9.56786942,1502.7,1502.6,4.4500436]
[1744300617859,1.33201,1502.5,1502.4,0.00996942]
[1744300618157,14.9118,1502.6,1502.0,3.2078]
[1744300618355,3.2078,1502.4,1501.8,3.2078]
[1744300618551,9.9826,1502.3,1502.0,3.2078]
[1744300618751,9.9826,1502.3,1501.8,3.2078]
[1744300618958,1.33253,1502.0,1501.7,50.8]
[1744300619160,10.0807,1501.9,1501.8,1.33264]
[1744300619366,10.0807,1501.9,1501.8,4.54044]
[1744300619753,10.0807,1501.9,1501.8,14.54044]
[1744300619954,25.7458,1501.9,1500.7,3.2078]
[1744300620156,3.2078,1501.3,1500.7,10.0]
[1744300620360,4.5411,1501.1,1500.8,40.8]
[1744300620562,10.0807,1501.0,1500.8,40.8]
[1744300620757,10.0807,1501.0,1500.9,1.33343]
[1744300620964,10.0807,1501.0,1500.8,50.8]
[1744300621158,3.2078,1500.9,1500.8,0.00996942]
[1744300621367,3.33394,1500.8,1500.2,30.91405585]
[1744300621669,3.2078,1500.4,1500.3,40.8]
[1744300621864,3.2078,1500.6,1500.3,40.8]
[1744300622069,13.2885,1500.8,1500.4,11.02644]
[1744300622264,3.2078,1501.0,1500.5,6.54228]
[1744300622475,3.2078,1501.0,1500.8,1.33346]
[1744300622665,10.16746942,1501.1,1500.6,13.02676]
[1744300622864,3.2078,1500.7,1500.6,19.6926]
[1744300623264,10.16746942,1501.1,1500.6,19.6926]
[1744300623265,1.33335,1501.0,1500.8,1.3335]
[1744300623468,13.37526942,1501.1,1500.9,1.3334]
[1744300623673,13.37526942,1501.1,1501.0,1.33335]
[1744300623871,10.16746942,1501.1,1500.9,1.33341]
[1744300624071,3.2078,1501.6,1501.0,3.2078]
[1744300624273,1.33306,1501.4,1501.1,11.02583]
[1744300624476,3.2078,1501.8,1501.2,3.2078]
[1744300624666,21.9697832,1501.9,1501.8,1.33264]
[1744300624868,11.8122832,1501.9,1501.8,1.33264]
[1744300625070,11.8122832,1501.9,1501.7,1.33265]
[1744300625369,1.33271,1501.8,1501.7,0.00996942]
[1744300625569,10.3384,1501.8,1501.7,0.00996942]
[1744300625774,11.67104,1501.8,1501.7,9.42e-06]
[1744300625963,16.67104,1501.8,1501.7,9.42e-06]
[1744300626163,16.90154,1501.8,1501.7,9.42e-06]
[1744300627371,10.3384,1501.8,1501.7,9.42e-06]
[1744300627567,11.67104,1501.8,1501.7,9.42e-06]
[1744300628070,15.0200832,1501.9,1501.8,1.33264]
[1744300628271,13.1448832,1501.9,1501.7,9.42e-06]
[1744300628575,11.26354,1501.8,1501.7,9.42e-06]
[1744300629584,0.00996942,1502.0,1501.7,5.00000942]
[1744300629785,3.2078,1501.8,1501.7,9.99004]
[1744300630385,3.2078,1501.8,1501.7,1.33272942]
[1744300630690,3.2078,1501.8,1501.7,9.42e-06]
[1744300630892,3.2078,1501.8,1501.7,1.33272942]
[1744300631092,3.2078,1501.8,1501.7,11.32276]
[1744300631284,4.54044,1501.8,1501.7,9.99004]
[1744300631685,4.54044,1501.8,1501.7,9.42e-06]
[1744300632189,3.2078,1501.8,1501.7,1.33272942]
[1744300632688,3.21776942,1502.0,1501.9,1.33255]
[1744300632888,0.00996942,1502.0,1501.9,6.33255]
[1744300633090,3.21776942,1502.0,1501.9,9.99003058]
[1744300633291,1.33264,1501.8,1501.7,9.42e-06]
[1744300633592,4.54044,1501.8,1501.7,9.42e-06]
[1744300634188,3.2078,1501.8,1501.7,1.33272942]
[1744300634689,4.54044,1501.8,1501.7,9.42e-06]
[1744300634890,3.2078,1501.6,1500.3,3.2078]
[1744300635092,3.2078,1500.9,1500.4,3.33471]
[1744300635288,4.5413,1500.9,1500.4,13.2556]
[1744300635488,3.2078,1500.9,1500.8,1.33352]
[1744300635689,3.2078,1501.1,1500.9,1.33336]
[1744300635895,3.2078,1501.1,1500.7,9.9209]
[1744300636093,3.2078,1501.1,1501.0,1.33335]
[1744300636296,3.2078,1501.7,1501.5,1.33287]
[1744300636594,4.54061,1501.7,1501.5,1.33289]
[1744300636795,1.33287,1501.6,1501.3,9.9209]
[1744300637102,1.33276,1501.7,1501.5,1.33288]
[1744300637296,1.33276,1501.7,1501.3,9.9209]
[1744300637297,1.33292,1501.5,1501.3,11.25395]
[1744300637489,3.2078,1501.7,1501.4,1.33293]
[1744300637692,4.5406,1501.7,1501.4,1.33293]
[1744300637886,3.2078,1501.7,1501.5,1.33282]
[1744300638094,0.00996942,1501.8,1501.3,13.25358]
[1744300638294,0.00996942,1501.8,1501.4,9.6248]
[1744300638596,3.2078,1501.5,1501.4,9.6248]
[1744300638790,4.5407,1501.5,1501.4,9.6248]
[1744300639093,1.33294,1501.5,1501.0,3.2078]
[1744300639296,1.33284,1501.6,1501.4,1.33297]
[1744300639499,3.2078,1501.7,1501.4,1.33294]
[1744300639500,12.9636,1501.7,1501.4,1.33294]
[1744300639797,1.3329,1501.5,1501.3,1.33304]
[1744300639998,12.9636,1501.7,1501.4,10.95775]
[1744300640196,12.9636,1501.7,1501.4,9.6248]
[1744300640197,9.7558,1501.7,1501.4,9.6248]
[1744300640398,1.33287,1501.6,1501.4,9.6248]
[1744300640589,12.9636,1501.7,1501.5,1.33285]
[1744300640590,11.08858,1501.7,1501.5,1.33285]
[1744300640987,0.00996942,1501.8,1501.6,9.6642]
[1744300641193,0.00996942,1501.8,1501.7,1.33272]
[1744300641497,0.00996942,1501.8,1501.7,42.13272]
[1744300641694,0.00996942,1501.8,1501.7,44.0078]
[1744300641895,0.00996942,1501.8,1501.7,42.13272]
[1744300642097,0.00996942,1501.8,1501.7,51.79692]
[1744300642494,1.34260942,1501.8,1501.7,50.4642]
[1744300642693,1.34260942,1501.8,1501.7,40.8]
[1744300642898,1.33272,1501.7,1501.6,0.00996942]
[1744300643093,14.03582,1501.7,1501.6,0.00996942]
[1744300643293,4.54052,1501.7,1501.6,0.00996942]
[1744300643595,3.2078,1501.7,1501.6,11.58257942]
[1744300643901,0.00996942,1501.8,1501.7,1.33272]
[1744300644595,0.00996942,1501.8,1501.6,10.24976942]
[1744300644798,0.00996942,1501.8,1501.7,1.33272]
[1744300645491,1.33272,1501.7,1501.6,0.00996942]
[1744300646195,9.54052,1501.7,1501.6,0.00996942]
[1744300646589,15.37452,1501.7,1501.6,9.42e-06]
[1744300646792,15.69157276,1501.7,1501.6,9.42e-06]
[1744300646993,15.37452,1501.7,1501.6,9.42e-06]
[1744300647195,17.42342,1501.7,1501.6,9.42e-06]
[1744300647488,17.42342,1501.7,1501.1,3.2078]
[1744300647489,1.33321,1501.2,1500.7,6.54164]
[1744300647803,16.0907,1501.7,1501.1,6.54095]
[1744300647993,16.0907,1501.7,1501.4,1.33297]
[1744300648195,5.834,1501.7,1501.5,10.4266]
[1744300648394,1.33275,1501.7,1501.5,11.75946]
[1744300648688,0.00996942,1501.8,1501.6,1.33276]
[1744300648898,1.34268942,1501.8,1501.7,10.4266]
[1744300649294,0.00996942,1501.8,1501.7,11.75932]
[1744300649804,1.34267942,1501.8,1501.6,1.33277]
[1744300650097,0.00996942,1501.8,1501.7,10.90222]
[1744300650402,0.00996942,1501.8,1501.7,14.11002]
[1744300650799,0.00996942,1501.8,1501.7,54.91002]
[1744300651795,0.00996942,1501.8,1501.7,50.3695]
[1744300651997,1.34260942,1501.8,1501.7,50.3695]
[1744300652300,0.00996942,1501.8,1501.4,0.00996]
[1744300652495,10.4225,1501.7,1501.5,1.33289]
[1744300652798,0.00996942,1501.8,1501.6,40.8]
[1744300653107,0.00996942,1501.8,1501.7,13.99262]
[1744300653297,0.00996942,1501.8,1501.7,9.4521]
[1744300653499,1.34260942,1501.8,1501.7,9.4521]
[1744300653792,1.33272,1501.7,1501.6,40.8]
[1744300654198,1.03281,1501.6,1501.5,9.4521]
[1744300654600,1.3329,1501.5,1501.4,0.00996]
[1744300654906,1.33326,1501.1,1501.0,9.4521]
[1744300655107,6.54056,1501.3,1500.7,3.2078]
[1744300655400,1.3335,1500.9,1500.7,3.2078]
[1744300655601,13.6092,1501.2,1500.7,3.2078]
[1744300655901,3.2078,1501.0,1500.8,10.448]
[1744300656104,4.54122,1501.0,1500.8,10.448]
[1744300656305,1.33343,1500.9,1500.8,10.448]
[1744300656501,11.73481,1501.0,1500.8,11.78152]
[1744300656701,11.73481,1501.0,1500.8,10.448]
[1744300657007,1.33354,1500.8,1500.4,12.8845]
[1744300657193,4.54132,1500.9,1500.6,10.448]
[1744300657398,4.54132,1500.9,1500.7,1.33358]
[1744300657594,3.2078,1500.9,1500.6,1.3337]
[1744300657799,1.33359,1500.8,1500.5,11.78172]
[1744300658006,10.4014,1500.8,1500.5,11.78172]
[1744300658306,10.4014,1500.8,1500.0,20.67918799]
[1744300658307,1.33415,1500.1,1500.0,20.67918799]
[1744300658601,1.33415,1500.1,1500.0,0.014249]
[1744300658798,6.33415,1500.1,1500.0,9e-06]
[1744300659005,11.00743,1500.1,1499.7,1.33444]
[1744300659206,1.33434,1499.9,1499.6,1.33453]
[1744300659403,3.2078,1499.7,1499.5,1.33468]
[1744300659705,1.33465,1499.6,1499.4,10.0392]
[1744300659901,1.33477,1499.4,1499.3,9e-06]
[1744300660106,9.6732,1499.6,1499.3,1.334799]
[1744300660305,9.6732,1499.6,1499.3,10.039209]
[1744300660603,3.2078,1499.8,1499.3,10.039209]
[1744300660804,1.33466,1499.6,1499.3,10.039209]
[1744300661003,1.33446,1499.8,1499.5,1.33466]
[1744300661208,14.21537,1499.9,1499.6,11.37374]
[1744300661403,12.881,1499.9,1499.6,10.0392]
[1744300661609,14.21539,1499.9,1499.6,10.0392]
[1744300661805,14.21539,1499.9,1499.6,11.37376]
[1744300662011,14.21539,1499.9,1499.6,10.0392]
[1744300662310,14.21539,1499.9,1499.6,11.37376]
[1744300662519,1.33442,1499.8,1499.6,10.0392]
[1744300662714,10.4364,1499.8,1499.6,11.37379]
[1744300663010,1.33444,1499.8,1499.6,10.0392]
[1744300663213,3.2078,1499.9,1499.7,1.3345]
[1744300663605,4.54212,1499.9,1499.3,3.33711]
[1744300663809,0.00996942,1500.2,1499.7,3.33626]
[1744300664006,0.00996942,1500.2,1499.8,13.47174]
[1744300664210,0.00996942,1500.2,1500.1,1.33415]
[1744300665206,0.00996942,1500.2,1500.1,9.54195]
[1744300666100,0.00996942,1500.2,1500.1,6.33415]
[1744300666410,0.00996942,1500.2,1500.1,3.2078]
[1744300666606,0.00996942,1500.2,1500.1,1.33415]
[1744300667313,0.00996942,1500.2,1499.9,13.47148]
[1744300667314,0.00996942,1500.2,1499.9,10.1357]
[1744300667514,4.54195,1500.1,1500.0,40.8]
[1744300667710,0.00996942,1500.2,1499.7,10.0898]
[1744300668011,1.33415,1500.1,1499.9,1.33428]
[1744300668220,0.00996942,1500.2,1500.0,10.0898]
[1744300668517,0.00996942,1500.2,1500.1,1.33415]
[1744300668924,1.34402942,1500.2,1500.1,1.33415]
[1744300669124,1.33415,1500.1,1500.0,10.0898]
[1744300669418,0.00996942,1500.2,1500.0,10.0898]
[1744300669610,0.00996942,1500.2,1500.0,11.42402]
[1744300669820,0.00996942,1500.2,1500.0,10.0898]
[1744300670003,4.54195,1500.1,1500.0,10.0898]
[1744300670210,1.33452,1499.7,1499.5,10.94336]
[1744300670409,3.2078,1499.8,1499.6,9.606]
[1744300670907,5.834,1500.0,1499.6,9.606]
[1744300671220,1.3343,1500.0,1499.8,1.33437]
[1744300671407,12.37727,1500.1,1499.7,40.8]
[1744300671612,1.33441,1499.9,1499.7,51.74047]
[1744300671817,1.33441,1499.8,1499.7,50.406]
[1744300672013,6.54373,1499.9,1499.2,3.2078]
[1744300672218,1.33468,1499.5,1499.4,9.606]
[1744300672610,9.0418,1499.8,1499.4,9.606]
[1744300672912,12.37784,1499.8,1499.4,10.94075]
[1744300673116,1.33462,1499.6,1499.4,10.94075]
[1744300673418,1.33455,1499.7,1499.5,1.33465]
[1744300673620,9.0418,1499.8,1499.4,9.606]
[1744300673916,1.33463,1499.6,1499.4,9.606]
[1744300674417,1.33464,1499.6,1499.4,9.606]
[1744300674613,6.54326,1500.1,1499.4,12.94279]
[1744300674916,1.33437,1499.9,1499.7,1.33447]
[1744300675212,4.54202,1500.1,1499.9,1.33432]
[1744300675419,1.33422,1500.1,1500.0,10.2016]
[1744300675617,4.54202,1500.1,1500.0,10.2016]
[1744300675912,3.33677,1499.5,1498.3,3.2078]
[1744300676114,3.33677,1499.5,1498.7,10.2016]
[1744300676115,1.3353,1498.8,1498.7,10.2016]
[1744300676304,3.2078,1499.0,1498.7,10.2016]
[1744300676511,3.21780267,1499.0,1498.7,10.2016]
[1744300676910,3.2078,1498.8,1498.7,10.2016]
[1744300677306,6.57815,1498.8,1498.3,3.2078]
[1744300677605,6.54651,1498.6,1498.0,10.35195084]
[1744300677809,1.33593,1498.1,1498.0,10.35195084]
[1744300678009,1.33593,1498.1,1498.0,20.26125084]
[1744300678214,1.33593,1498.1,1498.0,3.80406276]
[1744300678410,16.72943,1498.1,1498.0,3.80406276]
[1744300678607,2.53226559,1498.0,1497.9,0.40511846]
[1744300678811,1.33628,1497.7,1497.6,25.83207662]
[1744300679014,4.54408,1497.7,1497.6,15.47993481]
[1744300679217,9.54408,1497.7,1497.6,15.47993481]
[1744300679410,4.54408,1497.7,1497.6,15.47993481]
[1744300679606,4.54408,1497.7,1497.3,40.8]
[1744300679607,3.2078,1497.7,1497.4,9.8678]
[1744300679807,1.33642,1497.6,1497.4,9.8678]
[1744300680007,4.54429,1497.5,1497.0,10.33245347]
[1744300680218,3.2078,1497.5,1497.1,9.8678]
[1744300680418,1.33664,1497.3,1497.1,9.8678]
[1744300680617,0.01000267,1497.4,1497.1,13.0756]
[1744300681016,0.01000267,1497.4,1497.2,9.8678]
[1744300681219,0.01000267,1497.4,1497.3,3.2078]
[1744300681419,0.01000267,1497.4,1497.3,8.1042]
[1744300681717,10.3609,1498.0,1497.3,13.1042]
[1744300681916,3.2078,1497.4,1497.1,4.8315]
[1744300682115,1.33682,1497.1,1497.0,10.33245347]
[1744300682520,6.33682,1497.1,1497.0,8.66542347]
[1744300682725,15.98942,1497.1,1497.0,5.21663139]
[1744300682923,15.98942,1497.1,1497.0,1.33763139]
[1744300683115,1.34680267,1497.2,1497.0,1.33763139]
[1744300683427,0.01000267,1497.2,1497.0,6.33763139]
[1744300683721,0.01000267,1497.2,1497.0,1.33763139]
[1744300684116,8.35184267,1497.2,1496.9,11.82205737]
[1744300684322,1.33691,1497.0,1496.9,11.82205737]
[1744300684521,1.33691,1497.0,1496.9,0.01000267]
[1744300684717,15.98951,1497.0,1496.9,2.67e-06]
[1744300685422,10.98951,1497.0,1496.9,2.67e-06]
[1744300685622,1.33691,1497.0,1496.9,2.67e-06]
[1744300686325,1.33691,1497.0,1496.9,10.07120267]
[1744300686513,0.01000267,1497.2,1496.9,15.07120267]
[1744300686716,0.01000267,1497.2,1497.0,14.9268]
[1744300686919,0.01000267,1497.2,1497.1,10.0712]
[1744300687323,0.01000267,1497.2,1497.1,15.0712]
[1744300687523,1.34660267,1497.2,1497.1,55.8712]
[1744300688327,1.34660267,1497.2,1497.1,50.8712]
[1744300688525,1.34660267,1497.2,1497.1,55.8712]
[1744300688829,1.34660267,1497.2,1497.1,50.8712]
[1744300689332,1.34660267,1497.2,1497.1,55.8712]
[1744300689527,3.34088,1497.5,1497.1,55.8712]
[1744300689724,1.33651,1497.3,1497.2,12.8158]
[1744300689922,1.33651,1497.3,1497.2,24.5358]
[1744300690124,1.33651,1497.3,1497.2,29.5358]
[1744300690925,0.01000267,1497.4,1497.2,30.87235]
[1744300691226,6.54753,1498.0,1497.3,101.862]
[1744300691424,3.33997,1497.9,1497.6,3.2078]
[1744300691621,1.33606,1497.8,1497.7,21.328]
[1744300692023,1.33598,1497.9,1497.7,27.66412]
[1744300692232,3.33955,1498.1,1497.7,21.328]
[1744300692426,0.01000267,1497.9,1497.7,21.33800267]
[1744300692734,1.33606,1497.8,1497.7,9.61800267]
[1744300693535,1.33624,1497.6,1497.5,11.31232138]
[1744300693923,1.33651,1497.3,1497.2,13.1832]
[1744300694127,13.1549,1497.5,1497.1,40.8]
[1744300694436,1.3366,1497.2,1497.1,40.8]
[1744300695927,1.33669,1497.1,1497.0,0.01000267]
[1744300696127,14.64209,1497.1,1497.0,0.01000267]
[1744300696434,1.33704,1496.7,1496.6,10.1035]
[1744300696631,1.33704,1496.7,1496.6,20.2196]
[1744300696833,1.33704,1496.7,1496.6,10.1161]
[1744300697136,1.33704,1496.7,1496.6,50.9161]
[1744300697637,1.3374,1496.3,1496.2,11.72]
[1744300697932,3.2078,1496.3,1495.8,8.2561]
[1744300698136,1.33776,1495.9,1495.8,15.0792]
[1744300698331,3.34465,1495.8,1495.4,3.2078]
[1744300698535,1.3382,1495.5,1495.4,40.8]
[1744300698734,1.33818,1495.5,1495.0,8.0434]
[1744300698934,3.21780267,1495.7,1495.0,8.0434]
[1744300698935,10.366,1495.6,1495.1,10.0309]
[1744300699240,10.366,1495.6,1495.0,40.8]
[1744300699439,3.2078,1495.1,1494.5,3.2078]
[1744300699736,4.54633,1495.1,1494.7,1.33881]
[1744300699933,1.34865267,1494.9,1494.8,50.8309]
[1744300700141,1.34865267,1494.9,1494.8,40.8]
[1744300700337,0.01000267,1494.9,1494.8,40.8]
[1744300700639,1.33897,1494.6,1494.2,13.4214]
[1744300700933,1.33895,1494.6,1494.4,10.0093]
[1744300701139,3.2078,1494.8,1494.4,10.0093]
[1744300701332,1.33914,1494.4,1494.2,4.9606]
[1744300701634,10.3307,1494.7,1493.8,3.2078]
[1744300701635,1.33955,1493.9,1493.8,3.2078]
[1744300701841,3.2078,1494.1,1493.5,13.2171]
[1744300702138,10.3307,1494.0,1493.5,13.2171]
[1744300702338,0.01003647,1493.9,1493.5,13.2171]
[1744300702634,0.01003647,1493.9,1493.7,3.2078]
[1744300702831,0.01003647,1493.9,1493.8,23.07794]
[1744300703032,10.3307,1494.4,1493.8,21.7383]
[1744300703235,10.3307,1494.4,1493.8,23.07793]
[1744300703536,10.3307,1494.4,1493.9,3.2078]
[1744300703738,10.3307,1494.4,1493.9,10.0093]
[1744300703941,10.3307,1494.4,1494.0,3.2078]
[1744300703942,3.2078,1494.3,1494.0,3.2078]
[1744300704238,3.2078,1494.1,1493.6,3.2078]
[1744300704434,1.33964,1493.8,1493.6,13.0128]
[1744300704643,1.33964,1493.8,1493.7,0.01003647]
[1744300705139,6.33964,1493.8,1493.7,6.47e-06]
[1744300705438,1.34033,1493.1,1492.6,105.1998]
[1744300705742,3.2078,1493.5,1492.8,3.2078]
[1744300705941,6.55764,1493.5,1492.9,9.805]
[1744300706132,3.2078,1493.5,1493.0,3.2078]
[1744300706433,1.34029,1493.1,1492.8,1.34054]
[1744300706636,6.55807,1493.3,1492.8,9.805]
[1744300706833,10.2028,1493.2,1492.8,9.805]
[1744300707037,0.01003647,1493.4,1492.9,3.2078]
[1744300707242,1.3405,1492.9,1492.6,4.54844]
[1744300707441,1.3405,1492.9,1492.7,10.5029]
[1744300707632,13.4106,1493.3,1492.7,10.5029]
[1744300707833,3.35045,1493.2,1492.8,40.8]
[1744300708033,0.01003647,1493.4,1492.8,44.0078]
[1744300708232,10.21283647,1493.4,1492.9,11.84327]
[1744300708433,1.34028,1493.1,1492.9,11.84332]
[1744300708638,1.34036,1493.0,1492.9,10.5029]
[1744300709033,1.34045,1492.9,1492.8,40.8]
[1744300709235,1.34045,1492.9,1492.3,3.2078]
[1744300709236,1.34096,1492.4,1492.3,3.2078]
[1744300709442,1.34085,1492.5,1492.3,3.2078]
[1744300709632,1.34083,1492.5,1492.4,40.8]
[1744300709828,0.01003647,1492.5,1492.4,40.8]
[1744300710032,0.01003647,1492.5,1492.4,42.1409]
[1744300710243,0.01003647,1492.5,1492.4,52.4792]
[1744300710445,1.34021,1493.2,1492.6,3.35172]
[1744300710635,1.34021,1493.2,1492.9,3.2078]
[1744300710832,9.7374,1493.4,1493.0,10.3383]
[1744300711232,3.2078,1493.6,1493.4,1.33992]
[1744300711437,3.2078,1493.6,1493.1,6.55845]
[1744300711638,3.2078,1493.6,1493.4,1.34999647]
[1744300711639,4.55769647,1493.6,1493.4,1.34999647]
[1744300711837,4.55768647,1493.6,1493.4,0.01003647]
[1744300712037,3.21783647,1493.6,1493.4,10.34833647]
[1744300712643,1.33991,1493.5,1493.4,0.01003647]
[1744300712845,0.01003647,1493.6,1493.4,0.01003647]
[1744300713039,0.01003647,1493.6,1493.5,1.33991]
[1744300713338,1.33933,1494.2,1493.6,3.34948]
[1744300713540,10.2315,1494.3,1493.7,18.29413]
[1744300713745,1.33937,1494.1,1494.0,1.33944]
[1744300714041,3.34843,1494.1,1493.8,40.8]
[1744300714344,1.33955,1493.9,1493.8,40.8]
[1744300714545,3.34799,1494.3,1493.8,40.8]
[1744300714546,0.01003647,1494.1,1494.0,1.33946]
[1744300715048,0.01003647,1494.1,1493.9,13.44513647]
[1744300715246,0.01003647,1494.1,1494.0,1.33946]
[1744300715537,0.01003647,1494.1,1494.0,11.56676]
[1744300715746,0.01003647,1494.1,1494.0,16.56676]
[1744300716237,6.5547,1494.8,1494.0,16.56676]
[1744300716444,1.33921,1494.3,1493.9,0.01003647]
[1744300716642,1.33903,1494.5,1494.4,1.3391]
[1744300716837,1.33906,1494.5,1494.3,1.33914]
[1744300717036,10.4559,1494.7,1494.4,1.33908]
[1744300717237,1.33902,1494.5,1494.2,10.4436]
[1744300717437,10.46593647,1494.7,1494.3,6.55575]
[1744300717638,0.01003647,1494.7,1494.6,1.33892]
[1744300717842,1.33892,1494.6,1494.5,3.2078]
[1744300718048,0.01003647,1494.7,1494.6,1.33892]
[1744300718244,0.01003647,1494.7,1494.6,11.78252]
[1744300718545,3.2078,1495.2,1494.8,3.34685]
[1744300718742,3.2078,1495.5,1495.0,6.55422]
[1744300718943,3.2078,1495.7,1495.5,1.33804]
[1744300719140,4.54576,1495.7,1495.6,40.8]
[1744300719343,3.2078,1495.7,1495.6,40.8]
[1744300719539,3.2078,1495.9,1495.6,42.13798]
[1744300719740,0.01003647,1495.8,1495.6,40.8]
[1744300719939,3.2078,1495.7,1495.6,40.8]
[1744300720143,1.33803,1495.6,1495.5,0.01003647]
[1744300720540,9.54583,1495.6,1495.5,0.01003647]
[1744300721141,3.21783647,1495.8,1495.5,0.01003647]
[1744300721442,4.54583,1495.6,1495.5,0.01003647]
[1744300721646,3.21783647,1495.8,1495.5,0.01003647]
[1744300722040,1.33797,1495.7,1495.5,0.01003647]
[1744300722241,3.2078,1495.6,1495.5,0.01003647]
[1744300722644,4.54583,1495.6,1495.5,0.01003647]
[1744300722846,9.54583,1495.6,1495.5,0.01003647]
[1744300723042,3.2078,1495.6,1495.4,1.33812]
[1744300723242,3.2078,1495.6,1495.2,40.8]
[1744300723447,3.2078,1495.6,1495.3,11.32288]